Workbook

Sheet Sheet1
A1: 贵阳市发展和改革委员会下属事业单位专业技术岗位总成绩及进入体检环节人员名单
A2: 序号 | B2: 姓名 | C2: 准考证号 | D2: 单位 | E2: 报考岗位及代码 | F2: 笔试成绩 | G2: 笔试成绩（百分制） | H2: 笔试成绩（百分制） | I2: 笔试成绩30% | J2: 专业测试成绩 | K2: 专业测试成绩40% | L2: 面试成绩 | M2: 面试成绩30% | N2: 总成绩 | O2: 是否进入体检 | P2: 备注
A3: 1 | B3: 文楝 | C3: =VLOOKUP(B3,[1]Sheet1!$A$270:$O$280,3,0) -> 1152011402219 | D3: 贵阳市能源发展中心 | E3: =VLOOKUP(B3,[1]Sheet1!$A$270:$O$280,5,0) -> 20101001401 | F3: =VLOOKUP(B3,[1]Sheet1!$A$270:$O$280,11,0) -> 212.5 | G3: =F3*100/300 -> 70.83 | H3: =ROUND(G3,2) -> 70.83 | I3: =ROUND(H3*0.3,2) -> 21.25 | J3: =VLOOKUP(B3,[2]Sheet1!$B$3:$G$12,6,0) -> 82.25 | K3: =J3*0.4 -> 32.9 | L3: 79 | M3: =L3*0.3 -> 23.70 | N3: =I3+K3+M3 -> 77.85 | O3: 是
A4: 2 | B4: 田着霖 | C4: =VLOOKUP(B4,[1]Sheet1!$A$270:$O$280,3,0) -> 1152011401824 | D4: 贵阳市能源发展中心 | E4: =VLOOKUP(B4,[1]Sheet1!$A$270:$O$280,5,0) -> 20101001401 | F4: =VLOOKUP(B4,[1]Sheet1!$A$270:$O$280,11,0) -> 213.5 | G4: =F4*100/300 -> 71.17 | H4: =ROUND(G4,2) -> 71.17 | I4: =ROUND(H4*0.3,2) -> 21.35 | J4: =VLOOKUP(B4,[2]Sheet1!$B$3:$G$12,6,0) -> 68.75 | K4: =J4*0.4 -> 27.5 | L4: / | M4: / | N4: =I4+K4 -> 48.85 | P4: 放弃面试
A5: 3 | B5: 邱有帝 | C5: =VLOOKUP(B5,[1]Sheet1!$A$270:$O$280,3,0) -> 1152011402102 | D5: 贵阳市能源发展中心 | E5: =VLOOKUP(B5,[1]Sheet1!$A$270:$O$280,5,0) -> 20101001401 | F5: =VLOOKUP(B5,[1]Sheet1!$A$270:$O$280,11,0) -> 201.5 | G5: =F5*100/300 -> 67.17 | H5: =ROUND(G5,2) -> 67.17 | I5: =ROUND(H5*0.3,2) -> 20.15 | J5: =VLOOKUP(B5,[2]Sheet1!$B$3:$G$12,6,0) -> 64.5 | K5: =J5*0.4 -> 25.8 | L5: / | M5: / | N5: =I5+K5 -> 45.95 | P5: 放弃面试
